fUSD/lending_fUSD_20250911
["ID","MTS","AMOUNT","RATE_DAILY","PERIOD"]
[384894092,1757620281300,-400.0,0.00027945,7]
[384894093,1757620281309,-649.22,0.00027945,7]
[384894094,1757620281318,-444.61,0.00027945,7]
[384894095,1757620281327,-400.0,0.00027945,7]
[384894096,1757620281336,-2271.16,0.00027945,7]
[384894097,1757620281344,-400.0,0.00027945,7]
[384894098,1757620281353,-400.0,0.00027945,7]
[384894099,1757620281362,-2496.92,0.00027945,7]
[384894100,1757620281371,-1193.39,0.00027945,7]
[384894101,1757620281380,-400.0,0.00027945,7]
[384894102,1757620281389,-801.45,0.00027945,7]
[384894103,1757620281398,-400.0,0.00027945,7]
[384894104,1757620281407,-1982.97,0.00027945,7]
[384894105,1757620281415,-1306.21,0.00027945,7]
[384894106,1757620281424,-402.79430455,0.00027945,7]
[384894107,1757620281433,-400.0,0.00027945,7]
[384894108,1757620281442,-400.0,0.00027945,7]
[384894109,1757620281451,-400.0,0.00027945,7]
[384894110,1757620281460,-1975.11,0.00027945,7]
[384894111,1757620281469,-2985.47,0.00027945,7]
[384894112,1757620281478,-428.61,0.00027945,7]
[384894113,1757620281487,-569.13,0.00027945,7]
[384894114,1757620281495,-3085.55,0.00027945,7]
[384894115,1757620281505,-2419.46,0.00027945,7]
[384894116,1757620281514,-400.0,0.00027945,7]
[384894117,1757620281523,-400.0,0.00027945,7]
[384894118,1757620281531,-1799.18,0.00027945,7]
[384894119,1757620281541,-400.0,0.00027945,7]
[384894120,1757620281550,-1530.74,0.00027945,7]
[384894121,1757620281559,-513.09,0.00027945,7]
[384894122,1757620281568,-400.0,0.00027945,7]
[384894123,1757620281578,-400.0,0.00027945,7]
[384894124,1757620281587,-2182.5,0.00027945,7]
[384894125,1757620281597,-1897.3,0.00027945,7]
[384894126,1757620281606,-903.26,0.00027945,7]
[384894127,1757620281616,-1845.32,0.00027945,7]
[384894128,1757620281625,-435.04,0.00027945,7]
[384894129,1757620281634,-1564.44,0.00027945,7]
[384894130,1757620281644,-3024.4,0.00027945,7]
[384894131,1757620281653,-400.0,0.00027945,7]
[384894132,1757620281662,-400.0,0.00027945,7]
[384894133,1757620281671,-400.0,0.00027945,7]
[384894134,1757620281680,-2023.59,0.00027945,7]
[384894135,1757620281690,-735.97,0.00027945,7]
[384894136,1757620281700,-400.0,0.00027945,7]
[384894137,1757620281709,-400.0,0.00027945,7]
[384894138,1757620281718,-400.0,0.00027945,7]
[384894139,1757620281732,-2354.06,0.00027945,7]
[384894140,1757620281741,-4384.82,0.00027945,5]
[384894141,1757620281750,-400.0,0.00027945,7]
[384894142,1757620281759,-400.0,0.00027945,7]
[384894143,1757620281769,-1559.9,0.00027945,7]
[384894144,1757620281778,-400.0,0.00027945,7]
[384894145,1757620281787,-2593.14,0.00027945,7]
[384894146,1757620281796,-404.39,0.00027945,7]
[384894147,1757620281806,-400.0,0.00027945,7]
[384894148,1757620281815,-1958.65,0.00027945,7]
[384894149,1757620281825,-2895.66,0.00027945,7]
[384894150,1757620281834,-2271.63,0.00027945,7]
[384894151,1757620281843,-1780.25,0.00027945,7]
[384894152,1757620281852,-400.0,0.00027945,7]
[384894153,1757620281862,-2980.24,0.00027945,7]
[384894154,1757620281871,-412.70997405,0.00027945,7]
[384894155,1757620281880,-1273.42,0.00027945,7]
[384894156,1757620281890,-400.0,0.00027945,7]
[384894157,1757620281899,-877.62,0.00027945,7]
[384894158,1757620281907,-400.0,0.00027945,7]
[384894159,1757620281916,-2438.08,0.00027945,7]
[384894160,1757620281925,-400.0,0.00027945,7]
[384894161,1757620281935,-403.48150581,0.00027945,7]
[384894162,1757620281944,-400.0,0.00027945,2]
[384894163,1757620281953,-975.01,0.00027945,7]
[384894164,1757620281962,-2448.27,0.00027945,7]
[384894165,1757620281971,-400.0,0.00027945,7]
[384894166,1757620281981,-1022.19,0.00027945,7]
[384894167,1757620281990,-1368.9,0.00027945,7]
[384894168,1757620281998,-979.73,0.00027945,7]
[384894169,1757620282008,-1622.7,0.00027945,7]
[384894170,1757620282017,-400.0,0.00027945,7]
[384894171,1757620282026,-665.86,0.00027945,7]
[384894172,1757620282036,-400.0,0.00027945,7]
[384894173,1757620282046,-400.0,0.00027945,7]
[384894174,1757620282056,-894.93,0.00027945,7]
[384894175,1757620282066,-502.83,0.00027945,7]
[384894176,1757620282075,-2849.26,0.00027945,7]
[384894177,1757620282085,-365.14,0.00027945,7]
[384894178,1757620282094,-400.0,0.00027945,7]
[384894179,1757620282104,-400.0,0.00027945,7]
[384894180,1757620282114,-699.62,0.00027945,7]
[384894181,1757620282123,-2054.62,0.00027945,7]
[384894182,1757620282133,-1006.24,0.00027945,7]
[384894183,1757620282141,-400.0,0.00027945,7]
[384894184,1757620282149,-425.01,0.00027945,7]
[384894185,1757620282157,-400.0,0.00027945,7]
[384894186,1757620282165,-2290.47,0.00027945,7]
[384894187,1757620282173,-2409.82,0.00027945,7]
[384894188,1757620282181,-400.0,0.00027945,7]
[384894189,1757620282190,-400.0,0.00027945,7]
[384894190,1757620282198,-400.0,0.00027945,7]
[384894191,1757620282207,-400.0,0.00027945,7]
[384894192,1757620282215,-400.0,0.00027945,7]
[384894193,1757620282224,-400.0,0.00027945,7]
[384894194,1757620282233,-1555.46,0.00027945,7]
[384894195,1757620282241,-400.0,0.00027945,7]
[384894196,1757620282250,-1529.46,0.00027945,7]
[384894197,1757620282259,-738.26,0.00027945,7]
[384894198,1757620282269,-738.41,0.00027945,7]
[384894199,1757620282278,-403.08,0.00027945,7]
[384894200,1757620282288,-400.0,0.00027945,7]
[384894201,1757620282297,-447.3922994,0.00027945,7]
[384894202,1757620282307,-808.6,0.00027945,7]
[384894203,1757620282316,-400.0,0.00027945,7]
[384894204,1757620282326,-789.19,0.00027945,7]
[384894205,1757620282336,-400.0,0.00027945,7]
[384894206,1757620282346,-1952.72,0.00027945,7]
[384894207,1757620282356,-2628.68,0.00027945,7]
[384894208,1757620282366,-406.49468072,0.00027945,7]
[384894209,1757620282378,-400.0,0.00027945,7]
[384894210,1757620282388,-2716.3,0.00027945,7]
[384894211,1757620282398,-654.08,0.00027945,7]
[384894212,1757620282409,-830.34,0.00027945,7]
[384894213,1757620282420,-400.0,0.00027945,7]
[384894214,1757620282429,-1471.95,0.00027945,7]
[384894215,1757620282439,-2217.68,0.00027945,7]
[384894216,1757620282448,-2907.51,0.00027945,7]
[384894217,1757620282458,-1501.77,0.00027945,7]
[384894218,1757620282467,-2286.54,0.00027945,7]
[384894219,1757620282477,-400.0,0.00027945,7]
[384894220,1757620282486,-531.12,0.00027945,7]
[384894221,1757620282496,-224.03114287,0.00027945,7]
[384894222,1757620282505,-400.0,0.00027945,7]
[384894223,1757620282515,-776.82,0.00027945,7]
[384894224,1757620282525,-400.0,0.00027945,7]
[384894225,1757620282534,-1725.11,0.00027945,7]
[384894226,1757620282543,-400.0,0.00027945,7]
[384894227,1757620282553,-1013.51,0.00027945,7]
[384894228,1757620282563,-507.97,0.00027945,7]
[384894229,1757620282572,-1883.64,0.00027945,7]
[384894230,1757620282582,-400.0,0.00027945,7]
[384894231,1757620282592,-330.31206961,0.00027945,7]
[384894232,1757620282601,-1000.0,0.00027945,7]
[384894233,1757620282611,-3000.48,0.00027945,7]
[384894234,1757620282621,-2134.34,0.00027945,7]
[384894235,1757620282630,-400.0,0.00027945,7]
[384894236,1757620282639,-400.0,0.00027945,7]
[384894237,1757620282648,-985.44,0.00027945,7]
[384894238,1757620282657,-400.0,0.00027945,7]
[384894239,1757620282665,-1958.22,0.00027945,7]
[384894240,1757620282674,-400.0,0.00027945,7]
[384894241,1757620282682,-1766.39,0.00027945,7]
[384894242,1757620282691,-400.0,0.00027945,7]
[384894243,1757620282702,-1220.19,0.00027945,7]
[384894244,1757620282713,-1849.63,0.00027945,7]
[384894245,1757620282722,-940.02,0.00027945,7]
[384894246,1757620282940,-400.0,0.00027945,7]
[384894247,1757620282950,-400.0,0.00027945,7]
[384894248,1757620282959,-400.0,0.00027945,7]
[384894249,1757620282969,-400.0,0.00027945,7]
[384894250,1757620282979,-400.0,0.00027945,7]
[384894251,1757620282989,-1613.95,0.00027945,7]
[384894252,1757620282998,-400.0,0.00027945,7]
[384894253,1757620283008,-2710.31,0.00027945,7]
[384894254,1757620283018,-400.0,0.00027945,7]
[384894255,1757620283028,-400.0,0.00027945,7]
[384894256,1757620283037,-400.0,0.00027945,7]
[384894257,1757620283046,-400.0,0.00027945,7]
[384894258,1757620283056,-600.43,0.00027945,7]
[384894259,1757620283065,-2012.87,0.00027945,7]
[384894260,1757620283075,-1899.96,0.00027945,7]
[384894261,1757620283084,-400.0,0.00027945,7]
[384894262,1757620283094,-400.0,0.00027945,7]
[384894263,1757620283103,-2152.21,0.00027945,7]
[384894264,1757620283112,-2004.12,0.00027945,7]
[384894265,1757620283123,-1220.02,0.00027945,7]
[384894266,1757620283132,-413.74314675,0.00027945,7]
[384894267,1757620283142,-671.34,0.00027945,7]
[384894268,1757620283151,-400.0,0.00027945,7]
[384894269,1757620283161,-400.0,0.00027945,7]
[384894270,1757620283171,-2444.78,0.00027945,7]
[384894271,1757620283180,-1428.07,0.00027945,7]
[384894272,1757620283189,-400.0,0.00027945,7]
[384894273,1757620283197,-400.0,0.00027945,7]
[384894274,1757620283205,-796.27,0.00027945,7]
[384894275,1757620283214,-3834.59,0.00027945,7]
[384894276,1757620283222,-400.0,0.00027945,7]
[384894277,1757620283230,-400.0,0.00027945,7]
[384894278,1757620283238,-471.23,0.00027945,7]
[384894279,1757620283247,-2278.11,0.00027945,7]
[384894280,1757620283255,-400.0,0.00027945,7]
[384894281,1757620283263,-423.40641382,0.00027945,7]
[384894282,1757620283271,-1718.74,0.00027945,7]
[384894283,1757620283279,-2714.56,0.00027945,7]
[384894284,1757620283287,-400.0,0.00027945,7]
[384894285,1757620283296,-400.0,0.00027945,7]
[384894286,1757620283305,-915.5,0.00027945,7]
[384894287,1757620283315,-775.56,0.00027945,7]
[384894288,1757620283324,-550.4,0.00027945,7]
[384894289,1757620283333,-400.0,0.00027945,7]
[384894290,1757620283343,-2911.23,0.00027945,7]
[384894291,1757620283352,-1883.19,0.00027945,7]
[384894292,1757620283361,-419.41510248,0.00027945,7]
[384894293,1757620283372,-400.0,0.00027945,7]
[384894294,1757620283381,-400.0,0.00027945,7]
[384894295,1757620283391,-1659.41,0.00027945,7]
[384894296,1757620283401,-2147.98,0.00027945,7]
[384894297,1757620283410,-1955.66,0.00027945,7]
[384894298,1757620283421,-1249.3,0.00027945,7]
[384894299,1757620283432,-586.29,0.00027945,7]
[384894300,1757620283442,-400.0,0.00027945,7]
[384894301,1757620283451,-1103.79,0.00027945,7]
[384894302,1757620283461,-1786.68,0.00027945,7]
[384894303,1757620283470,-400.0,0.00027945,7]
[384894304,1757620283480,-400.0,0.00027945,7]
[384894305,1757620283489,-2651.23,0.00027945,7]
[384894306,1757620283498,-400.0,0.00027945,7]
[384894307,1757620283507,-400.0,0.00027945,7]
[384894308,1757620283518,-400.0,0.00027945,7]
[384894309,1757620283528,-400.0,0.00027945,7]
[384894310,1757620283537,-803.9,0.00027945,7]
[384894311,1757620283547,-400.0,0.00027945,7]
[384894312,1757620283557,-1173.42,0.00027945,7]
[384894313,1757620283566,-543.22,0.00027945,7]
[384894314,1757620283576,-400.0,0.00027945,7]
[384894315,1757620283585,-2151.88,0.00027945,7]
[384894316,1757620283596,-1539.73,0.00027945,7]
[384894317,1757620283606,-682.73,0.00027945,7]
[384894318,1757620283615,-400.0,0.00027945,7]
[384894319,1757620283625,-400.0,0.00027945,7]
[384894320,1757620283635,-2365.89,0.00027945,7]
[384894321,1757620283645,-412.34637695,0.00027945,7]
[384894322,1757620283654,-1231.09,0.00027945,7]
[384894323,1757620283664,-400.0,0.00027945,7]
[384894324,1757620283673,-400.0,0.00027945,7]
[384894325,1757620283683,-179.07288911,0.00027945,7]
[384894326,1757620283693,-1876.57,0.00027945,7]
[384894327,1757620283703,-400.0,0.00027945,7]
[384894328,1757620283712,-561.14,0.00027945,7]
[384894329,1757620283723,-2267.37,0.00027945,7]
[384894330,1757620283738,-400.0,0.00027945,7]
[384894331,1757620283748,-987.07,0.00027945,7]
[384894332,1757620283758,-2448.05,0.00027945,7]
[384894333,1757620283768,-400.0,0.00027945,7]
[384894334,1757620283778,-446.25,0.00027945,7]
[384894335,1757620283788,-1055.79,0.00027945,7]
[384894336,1757620283798,-438.27,0.00027945,7]
[384894337,1757620283808,-830.33,0.00027945,7]
[384894338,1757620283819,-2143.13,0.00027945,7]
[384894339,1757620283828,-1255.57,0.00027945,7]
[384894340,1757620283838,-400.0,0.00027945,7]
[384894341,1757620283847,-661.64,0.00027945,7]
[384894342,1757620283856,-888.08,0.00027945,7]
[384894343,1757620283866,-1672.53,0.00027945,7]
[384894344,1757620283875,-1035.83,0.00027945,7]
[384894345,1757620283885,-400.0,0.00027945,7]
[384894346,1757620283895,-400.0,0.00027945,7]
[384894347,1757620283904,-852.73,0.00027945,7]
[384894348,1757620283913,-400.0,0.00027945,7]
[384894349,1757620283923,-1414.03,0.00027945,7]
[384894350,1757620283932,-400.0,0.00027945,7]
[384894351,1757620283943,-400.0,0.00027945,7]
[384894352,1757620283952,-2641.89,0.00027945,7]
[384894353,1757620283961,-2635.54,0.00027945,7]
[384894354,1757620283971,-680.24,0.00027945,7]
[384894355,1757620283980,-400.0,0.00027945,7]
[384894356,1757620283989,-465.33,0.00027945,7]
[384894357,1757620283999,-400.0,0.00027945,7]
[384894358,1757620284008,-400.0,0.00027945,7]
[384894359,1757620284017,-400.0,0.00027945,7]
[384894360,1757620284027,-1610.03,0.00027945,7]
[384894361,1757620284036,-335.36625763,0.00027945,7]
[384894362,1757620284046,-513.36,0.00027945,7]
[384894363,1757620284055,-400.0,0.00027945,7]
[384894364,1757620284065,-400.0,0.00027945,7]
[384894365,1757620284075,-400.0,0.00027945,7]
[384894366,1757620284084,-1076.35,0.00027945,7]
[384894367,1757620284094,-1074.49,0.00027945,7]
[384894368,1757620284103,-1513.54,0.00027945,7]
[384894369,1757620284113,-400.0,0.00027945,7]
[384894370,1757620284122,-1839.95,0.00027945,7]
[384894371,1757620284132,-400.0,0.00027945,7]
[384894372,1757620284142,-678.06,0.00027945,7]
[384894373,1757620284151,-1601.17,0.00027945,7]
[384894374,1757620284160,-400.0,0.00027945,7]
[384894375,1757620284170,-2333.55,0.00027945,7]
[384894376,1757620284180,-400.0,0.00027945,7]
[384894377,1757620284190,-400.0,0.00027945,7]
[384894378,1757620284199,-400.0,0.00027945,7]
[384894379,1757620284209,-888.01,0.00027945,7]
[384894380,1757620284218,-400.0,0.00027945,7]
[384894381,1757620284227,-2903.75,0.00027945,7]
[384894382,1757620284237,-400.0,0.00027945,7]
[384894383,1757620284246,-400.0,0.00027945,7]
[384894384,1757620284256,-1783.87,0.00027945,7]
[384894385,1757620284265,-400.0,0.00027945,7]
[384894386,1757620284274,-2141.61,0.00027945,7]
[384894387,1757620284285,-400.0,0.00027945,7]
[384894388,1757620284294,-745.0,0.00027945,7]
[384894389,1757620284304,-1585.29,0.00027945,7]
[384894390,1757620284314,-400.0,0.00027945,7]
[384894391,1757620284323,-2317.34,0.00027945,7]
[384894392,1757620284333,-2467.19,0.00027945,7]
[384894393,1757620284342,-400.0,0.00027945,7]
[384894394,1757620284352,-821.08,0.00027945,7]
[384894395,1757620284361,-400.0,0.00027945,7]
[384894396,1757620284371,-1711.43,0.00027945,7]
[384894397,1757620284381,-2380.54,0.00027945,7]
[384894398,1757620284391,-2393.2,0.00027945,7]
[384894399,1757620284401,-439.54,0.00027945,7]
[384894400,1757620284411,-400.0,0.00027945,7]
[384894401,1757620284623,-2043.61,0.00027945,7]
[384894402,1757620284644,-589.63,0.00027945,7]
[384894403,1757620284654,-400.0,0.00027945,7]
[384894404,1757620284663,-400.0,0.00027945,7]
[384894405,1757620284672,-400.0,0.00027945,7]
[384894406,1757620284682,-400.0,0.00027945,7]
[384894407,1757620284691,-400.0,0.00027945,7]
[384894408,1757620284700,-2015.12,0.00027945,7]
[384894409,1757620284709,-461.26,0.00027945,7]
[384894410,1757620284718,-400.0,0.00027945,7]
[384894411,1757620284729,-400.0,0.00027945,7]
[384894412,1757620284739,-400.0,0.00027945,7]
[384894413,1757620284748,-1740.54,0.00027945,7]
[384894414,1757620284757,-400.0,0.00027945,7]
[384894415,1757620284767,-400.0,0.00027945,7]
[384894416,1757620284776,-1659.57,0.00027945,7]
[384894417,1757620284786,-1110.1,0.00027945,7]
[384894418,1757620284795,-2031.5,0.00027945,7]
[384894419,1757620284804,-400.0,0.00027945,7]
[384894420,1757620284813,-4455.59,0.00027945,7]
[384894421,1757620284822,-400.0,0.00027945,7]
[384894422,1757620284831,-400.0,0.00027945,7]
[384894423,1757620284841,-678.23,0.00027945,7]
[384894424,1757620284850,-1725.45,0.00027945,7]
[384894425,1757620284859,-1995.85,0.00027945,7]
[384894426,1757620284868,-400.0,0.00027945,7]
[384894427,1757620284877,-1535.28,0.00027945,7]
[384894428,1757620284886,-400.0,0.00027945,7]
[384894429,1757620284897,-400.0,0.00027945,7]
[384894430,1757620284907,-414.14137926,0.00027945,7]
[384894431,1757620284915,-400.0,0.00027945,7]
[384894432,1757620284924,-276.4955248,0.00027945,7]
[384894433,1757620284934,-400.0,0.00027945,7]
[384894434,1757620284944,-400.0,0.00027945,7]
[384894435,1757620284953,-400.0,0.00027945,7]
[384894436,1757620284962,-1700.42,0.00027945,7]
[384894437,1757620284971,-400.0,0.00027945,7]
[384894438,1757620284981,-385.42673413,0.00027945,7]
[384894439,1757620284990,-1285.44,0.00027945,7]
[384894440,1757620284999,-3550.96,0.00027945,7]
[384894441,1757620285008,-688.84,0.00027945,7]
[384894442,1757620285017,-6053.93,0.00027945,7]
[384894443,1757620285026,-541.74,0.00027945,7]
[384894444,1757620285035,-633.69,0.00027945,7]
[384894445,1757620285045,-408.86,0.00027945,7]
[384894446,1757620285054,-400.0,0.00027945,7]
[384894447,1757620285064,-858.3,0.00027945,7]
[384894448,1757620285073,-2841.25,0.00027945,7]
[384894449,1757620285082,-400.0,0.00027945,7]
[384894450,1757620285091,-2323.52,0.00027945,7]
[384894451,1757620285100,-400.0,0.00027945,7]
[384894452,1757620285109,-1786.16,0.00027945,7]
[384894453,1757620285117,-400.0,0.00027945,7]
[384894454,1757620285126,-400.0,0.00027945,7]
[384894455,1757620285135,-3599.81,0.00027945,7]
[384894456,1757620285144,-400.0,0.00027945,7]
[384894457,1757620285153,-400.0,0.00027945,7]
[384894458,1757620285162,-2353.97,0.00027945,7]
[384894459,1757620285171,-1698.95,0.00027945,7]
[384894460,1757620285180,-621.53,0.00027945,7]
[384894461,1757620285190,-595.41,0.00027945,7]
[384894462,1757620285199,-400.0,0.00027945,7]
[384894463,1757620285208,-400.0,0.00027945,7]
[384894464,1757620285217,-3302.72,0.00027945,7]
[384894465,1757620285226,-1679.75,0.00027945,7]
[384894466,1757620285235,-1760.81,0.00027945,7]
[384894467,1757620285245,-400.0,0.00027945,7]
[384894468,1757620285254,-400.0,0.00027945,7]
[384894469,1757620285264,-400.0,0.00027945,7]
[384894470,1757620285272,-1852.32,0.00027945,7]
[384894471,1757620285282,-400.0,0.00027945,7]
[384894472,1757620285291,-541.7,0.00027945,7]
[384894473,1757620285301,-770.05,0.00027945,7]
[384894474,1757620285310,-400.0,0.00027945,7]
[384894475,1757620285319,-2064.91,0.00027945,7]
[384894476,1757620285328,-400.0,0.00027945,7]
[384894477,1757620285337,-413.0058664,0.00027945,7]
[384894478,1757620285347,-400.0,0.00027945,7]
[384894479,1757620285357,-2466.07,0.00027945,7]
[384894480,1757620285366,-530.98,0.00027945,7]
[384894481,1757620285375,-400.0,0.00027945,7]
[384894482,1757620285385,-400.0,0.00027945,7]
[384894483,1757620285394,-1224.53,0.00027945,7]
[384894484,1757620285403,-400.0,0.00027945,7]
[384894485,1757620285412,-1729.71,0.00027945,7]
[384894486,1757620285422,-1586.3,0.00027945,7]
[384894487,1757620285430,-400.0,0.00027945,7]
[384894488,1757620285440,-1817.55,0.00027945,7]
[384894489,1757620285449,-300.0,0.00027945,7]
[384894490,1757620285458,-677.67,0.00027945,7]
[384894491,1757620285467,-400.0,0.00027945,7]
[384894492,1757620285477,-2350.83,0.00027945,7]
[384894493,1757620285486,-400.0,0.00027945,7]
[384894494,1757620285495,-2203.86,0.00027945,7]
[384894495,1757620285505,-1080.25,0.00027945,7]
[384894496,1757620285514,-2569.91,0.00027945,7]
[384894497,1757620285523,-3858.44,0.00027945,7]
[384894498,1757620285532,-2751.89,0.00027945,7]
[384894499,1757620285541,-2086.34,0.00027945,7]
[384894500,1757620285551,-1001.88,0.00027945,7]
[384894501,1757620285560,-2600.38,0.00027945,7]
[384894502,1757620285569,-400.0,0.00027945,7]
[384894503,1757620285578,-404.9,0.00027945,7]
[384894504,1757620285588,-789.13,0.00027945,7]
[384894505,1757620285597,-405.84,0.00027945,7]
[384894506,1757620285606,-400.0,0.00027945,7]
[384894507,1757620285616,-626.04,0.00027945,7]
[384894508,1757620285625,-1697.74,0.00027945,7]
[384894509,1757620285635,-400.0,0.00027945,7]
[384894510,1757620285644,-2799.14,0.00027945,7]
[384894511,1757620285653,-1985.19,0.00027945,7]
[384894512,1757620285662,-1433.95,0.00027945,7]
[384894513,1757620285671,-1227.92,0.00027945,7]
[384894514,1757620285681,-400.0,0.00027945,7]
[384894515,1757620285691,-400.0,0.00027945,7]
[384894516,1757620285700,-1468.61,0.00027945,7]
[384894517,1757620285710,-850.51,0.00027945,7]
[384894518,1757620285719,-400.0,0.00027945,7]
[384894519,1757620285732,-400.0,0.00027945,7]
[384894520,1757620285741,-1701.07,0.00027945,7]
[384894521,1757620285750,-400.0,0.00027945,7]
[384894522,1757620285759,-3725.44,0.00027945,7]
[384894523,1757620285768,-400.0,0.00027945,7]
[384894524,1757620285778,-557.13,0.00027945,7]
[384894525,1757620285787,-400.0,0.00027945,7]
[384894526,1757620285796,-2464.56,0.00027945,7]
[384894527,1757620285807,-3292.7,0.00027945,7]
[384894528,1757620285816,-400.0,0.00027945,7]
[384894529,1757620285826,-553.58,0.00027945,7]
[384894530,1757620285835,-2301.76,0.00027945,7]
[384894531,1757620285844,-400.0,0.00027945,7]
[384894532,1757620285853,-400.0,0.00027945,7]
[384894533,1757620285863,-1843.38,0.00027945,7]
[384894534,1757620285872,-638.26,0.00027945,7]
[384894535,1757620285881,-2284.9,0.00027945,7]
[384894536,1757620285891,-841.49,0.00027945,7]
[384894537,1757620285900,-807.21,0.00027945,7]
[384894538,1757620285909,-1511.23,0.00027945,7]
[384894539,1757620285919,-400.0,0.00027945,7]
[384894540,1757620285927,-400.0,0.00027945,7]
[384894541,1757620285937,-400.0,0.00027945,7]
[384894542,1757620285946,-9658.32,0.00027945,7]
[384894543,1757620285956,-400.0,0.00027945,7]
[384894544,1757620285965,-1446.38,0.00027945,7]
[384894545,1757620285974,-3009.3,0.00027945,7]
[384894546,1757620285983,-768.89,0.00027945,7]
[384894547,1757620285992,-556.75,0.00027945,7]
[384894548,1757620286001,-1787.19,0.00027945,7]
[384894549,1757620286011,-2055.22,0.00027945,7]
[384894550,1757620286020,-400.0,0.00027945,7]
[384894551,1757620286029,-1350.39,0.00027945,7]
[384894552,1757620286038,-400.0,0.00027945,7]
[384894553,1757620286047,-400.0,0.00027945,7]
[384894554,1757620286056,-400.0,0.00027945,7]
[384894555,1757620286065,-400.0,0.00027945,7]
[384894556,1757620286074,-400.0,0.00027945,7]
[384894557,1757620286083,-400.0,0.00027945,7]
[384894558,1757620286092,-2594.81,0.00027945,7]
[384894559,1757620286101,-400.0,0.00027945,7]
[384894560,1757620286110,-3435.66,0.00027945,7]
[384894561,1757620286119,-442.94,0.00027945,7]
[384894562,1757620286128,-1286.43,0.00027945,7]
[384894563,1757620286138,-400.0,0.00027945,7]
[384894564,1757620286147,-3448.15,0.00027945,7]
[384894565,1757620286156,-4108.81,0.00027945,7]
[384894566,1757620286166,-1795.64,0.00027945,7]
[384894567,1757620286176,-895.01,0.00027945,7]
[384894568,1757620286185,-1872.49,0.00027945,7]
[384894569,1757620286195,-651.48,0.00027945,7]
[384894570,1757620286204,-2380.75,0.00027945,7]
[384894571,1757620286215,-400.0,0.00027945,7]
[384894572,1757620286224,-2708.23,0.00027945,7]
[384894573,1757620286234,-2401.57,0.00027945,7]
[384894574,1757620286243,-400.0,0.00027945,7]
[384894575,1757620286252,-400.0,0.00027945,7]
[384894576,1757620286261,-2850.14,0.00027945,7]
[384894577,1757620286270,-338.42812963,0.00027945,7]
[384894578,1757620286279,-400.0,0.00027945,7]
[384894579,1757620286288,-400.0,0.00027945,7]
[384894580,1757620286297,-1561.88,0.00027945,7]
[384894581,1757620286306,-1989.47,0.00027945,7]
[384894582,1757620286315,-1051.2,0.00027945,7]
[384894583,1757620286324,-400.0,0.00027945,7]
[384894584,1757620286333,-1630.42,0.00027945,7]
[384894585,1757620286342,-400.0,0.00027945,7]
[384894586,1757620286351,-756.74,0.00027945,7]
[384894587,1757620286360,-400.0,0.00027945,7]
[384894588,1757620286369,-2419.66,0.00027945,7]
[384894589,1757620286378,-400.0,0.00027945,7]
[384894590,1757620286387,-400.0,0.00027945,7]
[384894591,1757620286396,-400.0,0.00027945,7]